Cogmind - Beta 15 @@@ ROGUE MODE // 2025.06.03 @ 18:52:54 Player: BlobtheGreat Result: Destroyed by G-47 Trooper with Particle Gun Performance ------------- Evolutions (3) 1500 Regions Visited (5) 1000 Robots Destroyed (80) 400 Value Destroyed (2535) 2535 Prototype IDs (9) 180 Alien Tech Used (0) 0 Bonus (0) 0 TOTAL SCORE: 5615 Bonus ------- None Cogmind --------- Core Integrity 0/700 Matter 287/300 Energy 100/100 System Corruption 7% Temperature Cool (9) Movement Core (750) Ox14 Location -7/Factory Parts ------- > --- POWER (1) -------- (None) > --- PROPULSION (4) --- (None) > --- UTILITY (5) ------ High-capacity Storage Unit Improved Signal Interpreter > --- WEAPON (3) ------- Heavy Flail > --- INVENTORY (20) --- Improved Ion Engine Airjet Airjet Aerolev Unit Experimental Heat Sink Weight Redist. System Advanced Weight Redist. System Trap Scanner Improved Sensor Array Transmission Jammer Trap Extractor (0/4) Shock Bomb Launcher Improved Datajack Mining Claw Peak State ------------ > --- POWER ------------ Improved Ion Engine > --- PROPULSION ------- Airjet Airjet Aerolev Unit Aerolev Unit > --- UTILITY ---------- Experimental Heat Sink Large Storage Unit Advanced Weight Redist. System Improved Sensor Array Hacking Suite > --- WEAPON ----------- Enhanced Autogun Flak Cannon Heavy Flail > --- INVENTORY -------- Improved Ion Engine Carbon-fiber Leg Carbon-fiber Leg Carbon-fiber Leg Carbon-fiber Leg High-capacity Storage Unit Weight Redist. System Trap Scanner Improved Signal Interpreter ECM Suite Improved Light Armor Plating Reflective Plating Trap Extractor Shock Bomb Launcher Improved Datajack [Rating: 46] Favorites ----------- Power Ion Engine Engine Ion Engine Power Core Light Nuclear Core Propulsion Carbon-fiber Leg Leg Carbon-fiber Leg Wheel Wheel Hover Unit Aerolev Unit Utility Large Storage Unit Device Improved Sensor Array Storage Large Storage Unit Processor Improved Signal Interpreter Hackware Hacking Suite Protection Reflective Plating Weapon Enhanced Autogun Energy Gun Subdweller Laser Energy Cannon Plasma Cannon Ballistic Gun Enhanced Autogun Ballistic Cannon Flak Cannon Launcher Subdweller Shrapnel Launcher Special Weapon Multitool Impact Weapon Heavy Flail Slashing Weapon Mining Claw Special Melee Weapon Improved Datajack Build | -11 -10 -10 -8 -8 -7 ------- Run | Yrd Mat Sub Mat Sto Fac Slots Evolved 6 | . . . 4 . 2 Power . | . . . . . . Propulsion 2 | . . . 2 . . Utility 3 | . . . 1 . 2 Weapon 1 | . . . 1 . . Parts Attached 83 | 7 4 8 25 18 21 Power 10 | 1 . 1 2 4 2 Engine 8 | 1 . 1 1 4 1 Core 2 | . . . 1 . 1 Reactor . | . . . . . . Propulsion 28 | 2 2 3 6 9 6 Treads . | . . . . . . Leg 17 | 2 . 3 5 5 2 Wheel 3 | . . . 1 . 2 Hover 8 | . 2 . . 4 2 Flight . | . . . . . . Utility 23 | 2 1 3 6 3 8 Device 10 | 1 . 2 1 2 4 Storage 4 | 1 1 . 1 . 1 Processor 2 | . . . 1 . 1 Hackware 1 | . . . . . 1 Protection 6 | . . 1 3 1 1 Artifact . | . . . . . . Weapon 22 | 2 1 1 11 2 5 Energy Gun 1 | . . . 1 . . Energy Cannon 3 | . . . . . 3 Ballistic Gun 8 | 2 . . 4 1 1 Ballistic Cannon 2 | . . . 2 . . Launcher 2 | . . 1 1 . . Special Weapon 2 | . 1 . 1 . . Impact Weapon 2 | . . . 1 1 . Slashing Weapon 1 | . . . . . 1 Piercing Weapon . | . . . . . . Special Melee Weapon 1 | . . . 1 . . Unidentified Prototypes 5 | . . . 2 1 2 Parts Lost 42 | . . 6 17 . 19 Power 4 | . . 1 1 . 2 Propulsion 18 | . . 3 7 . 8 Utility 10 | . . 1 4 . 5 Weapon 10 | . . 1 5 . 4 Highest Loss Streak 13 | . . 5 4 . 13 To Critical Strikes . | . . . . . . Average Backups 14 | 3 12 12 14 14 18 Power 1 | . 1 1 1 . 1 Propulsion 2 | 2 6 3 1 1 4 Utility 6 | . 3 4 6 10 7 Weapon 2 | . . 2 3 1 3 Tool/Special . | . . . . . . Unused Backups 21 | . 5 3 6 2 5 Power . | . . . . . . Propulsion 8 | . 4 2 1 . 1 Utility 9 | . . 1 3 2 3 Weapon 3 | . 1 . 1 . 1 Tool/Special 1 | . . . 1 . . Average Slot Usage (%) 89 | . 100 97 87 83 85 Engine 8 | . 14 13 6 8 6 Leg 23 | . 25 27 26 14 23 Wheel 1 | . . . 2 . . Hover 2 | . 2 . . 9 1 Device 11 | . 14 12 9 10 12 Storage 10 | . 14 14 9 9 7 Processor 2 | . . . 1 3 5 Protection 3 | . . 1 4 4 5 Ballistic Gun 13 | . 28 20 14 11 5 Ballistic Cannon 1 | . . . 2 2 1 Launcher 1 | . . 7 1 . . Impact Weapon 2 | . . . 2 . 7 Special Melee Weapon 1 | . . . 1 9 . Peak Build Rating 46 | 8 11 11 30 35 46 Average Rating 23 | 5 8 9 22 28 36 On Entrance 12 | . 8 9 9 13 35 Naked Turns . | . . . . . . Heaviest Build 74 | 12 27 35 42 44 74 Greatest Support 66 | 20 20 20 45 60 66 Greatest Overweight (x) 15 | . 1 2 9 3 15 Average Overweight (x) . | . . 1 1 . . Largest Inventory Capacity 20 | 8 15 15 15 15 20 Average Capacity 16 | 7 14 15 15 15 19 Most Carried 20 | 8 15 15 15 15 20 Average Carried 14 | 4 12 12 14 14 18 Final Capacity 20 | 8 15 15 15 15 20 Final Carried 15 | 8 15 10 13 15 14 Class Distribution -------------------- 67% | Mutant 22% | Scavenger-Mutant 5% | Scavenger-Tank Dominant Class ---------------- Mutant | -10/Materials Mutant | -10/Subcaves Scavenger-Mutant | -8/Materials Mutant | -8/Storage Mutant | -7/Factory Resources | -11 -10 -10 -8 -8 -7 ----------- Run | Yrd Mat Sub Mat Sto Fac Matter Collected 2996 | 281 95 107 1253 655 605 Remotely . | . . . . . . Salvage Created 2947 | 15 128 187 1429 639 549 Parts 176 | 3 9 13 93 28 30 Haulers Intercepted 8 | . 1 . 5 2 . Recyclers Shooed 4 | . . . 2 2 . Parts Field Recycled . | . . . . . . Retrieved Matter . | . . . . . . Parts Self-Destructed . | . . . . . . Prevented . | . . . . . . Kills | -11 -10 -10 -8 -8 -7 ------- Run | Yrd Mat Sub Mat Sto Fac Combat Hostiles Destroyed 59 | . 2 6 28 12 11 Melee 3 | . . . . 1 2 Guns 33 | . 2 2 18 6 5 Cannons 15 | . . . 7 5 3 AOE 6 | . . 4 2 . . Classes Destroyed 16 | 1 2 1 8 3 1 Worker 3 | . . . . 1 2 Builder 2 | . . . 2 . . Tunneler 2 | 1 . . 1 . . Hauler 8 | . 1 . 5 2 . Recycler 3 | . . . 3 . . Mechanic 1 | . . . 1 . . Watcher 2 | . . . 1 . 1 Swarmer 7 | . . . 7 . . Cutter 4 | . . . 4 . . Grunt 23 | . 2 . 10 5 6 Brawler 1 | . . . . 1 . Duelist 2 | . . . 1 . 1 Sentry 12 | . . . 6 5 1 Hunter 1 | . . . . 1 . Programmer 3 | . . . . . 3 Subdweller 6 | . . 6 . . . Best Kill Streak 6 | 1 2 4 6 6 3 Combat Bots Only 6 | . 2 4 6 5 3 Max Kills in Single Turn 2 | 1 1 1 2 1 1 Gunslinging . | . . . . . . Exploded 2 | . . 1 2 . . Melee 1 | . . . . 1 1 Uniques/NPCs Destroyed . | . . . . . . Combat | -11 -10 -10 -8 -8 -7 -------- Run | Yrd Mat Sub Mat Sto Fac Hostile Shots Fired 469 | . 5 25 178 38 223 Missed 118 | . 1 8 47 9 53 Hits 351 | . 4 17 131 29 170 Melee 19 | . . . 17 . 2 Projectile 332 | . 4 17 114 29 168 AOE 10 | . . 9 . . 1 Critical Strikes 22 | . . . 12 2 8 Damage Taken 5846 | . 40 683 2032 406 2685 Core 1248 | . 10 131 344 57 706 Absorbed by Shields . | . . . . . . Redirected to Shielding 6 | . . 6 . . . Ignored by Resistances 72 | . . . . 34 38 Core Remaining (%) 56 | 100 . 43 . 27 . Volleys Fired 214 | 3 13 14 113 30 41 Largest 3 | 2 2 2 3 2 2 Hottest 120 | 40 40 60 120 62 94 Shots Fired 446 | 6 17 28 269 58 68 Gun 332 | 6 16 20 201 38 51 Cannon 92 | . . . 55 20 17 Launcher 10 | . . 8 2 . . Special 12 | . 1 . 11 . . Kinetic 410 | 6 16 28 239 58 63 Thermal 33 | . 1 . 29 . 3 Explosive . | . . . . . . Electromagnetic 3 | . . . 1 . 2 Robot Hit Streak 12 | 1 3 11 12 9 8 Robot Miss Streak 11 | 2 2 1 11 6 5 Penetration Max . | . . . . . . Secondary Targets 2 | . 1 . . . 1 Max Gunslinging Chain 1 | . 1 . . . 1 Shots Hit Robots 307 | 2 10 21 163 42 69 Core Hits 164 | 1 6 12 76 40 29 Critical Kills 1 | . . . . 1 . Critical Parts Destroyed 3 | 1 . . . . 2 Critical Strikes 8 | 1 . . 3 1 3 Destroy 1 | 1 . . . . . Blast 3 | . . . 3 . . Smash 4 | . . . . 1 3 Melee Attacks 79 | . . . 27 2 50 Impact 77 | . . . 25 2 50 Slashing . | . . . . . . Piercing . | . . . . . . Sneak Attacks 2 | . . . 1 . 1 Combat Hostiles . | . . . . . . Follow-up Attacks . | . . . . . . Damage Inflicted 6431 | 24 95 736 2867 868 1841 Guns 3282 | 24 95 151 1812 476 724 Cannons 1476 | . . . 793 362 321 Explosions 722 | . . 585 137 . . Melee 936 | . . . 110 30 796 Ramming . | . . . . . . Kinetic 5028 | 24 95 736 2429 838 906 Thermal 334 | . . . 258 . 76 Explosive . | . . . . . . Electromagnetic 133 | . . . 70 . 63 Impact 936 | . . . 110 30 796 Slashing . | . . . . . . Piercing . | . . . . . . Highest Corruption 7 | . . . . 2 7 Average Corruption 2 | . . . . 2 3 Corruption Purged . | . . . . . . Corruption Blocked . | . . . . . . Effects 21 | . . . . 1 20 Message Errors 2 | . . . . . 2 Matter Fused 7 | . . . . 1 6 Heat Flow Errors 2 | . . . . . 2 Energy Discharges 5 | . . . . . 5 Data Loss (minor) 2 | . . . . . 2 Data Loss (major) 1 | . . . . . 1 Misfires 2 | . . . . . 2 Overload Shots . | . . . . . . Overflow Damage 219 | . . . 27 . 192 Projectiles 15 | . . . 15 . . Explosions . | . . . . . . Melee 204 | . . . 12 . 192 Knockbacks 35 | . . . 10 9 16 Impact 5 | . . . . . 5 Kinetic 29 | . . . 10 9 10 Secondary 1 | . . . . . 1 Self-Inflicted Damage 43 | . . . 43 . . Shots 2 | . . . 2 . . Rammed . | . . . . . . Targets Rammed . | . . . . . . Kicked . | . . . . . . Crushed . | . . . . . . Highest Temperature 339 | . 12 . 339 97 245 Average Temperature 77 | . 8 . 73 36 115 Received Heat Transfer 2529 | . 24 66 882 189 1368 Effects 2 | . . . 2 . . Shutdowns 1 | . . . 1 . . Energy Bleed 1 | . . . 1 . . Siege Activations . | . . . . . . Martial Activations . | . . . . . . Shielding Activations . | . . . . . . Robots Disrupted . | . . . . . . Combat Hostiles . | . . . . . . Robots Corrupted 2 | . . . 1 . 1 Combat Hostiles 2 | . . . 1 . 1 Parts Fried 5 | . . . 4 . 1 Impact Corruptions 11 | . . . 1 . 10 Robots Melted . | . . . . . . Combat Hostiles . | . . . . . . Parts Melted 3 | . . . 1 . 2 Heat Transferred 500 | . . . 350 . 150 Parts Sabotaged . | . . . . . . Parts Stolen . | . . . . . . Parts Stripped . | . . . . . . Power Chain Reactions . | . . . . . . Alert | -11 -10 -10 -8 -8 -7 ------- Run | Yrd Mat Sub Mat Sto Fac Maximum Alert Level 1 | . . . 1 . . Low Security (%) 84 | 100 100 . 52 100 100 Level 1 15 | . . . 47 . . Level 2 . | . . . . . . Level 3 . | . . . . . . Level 4 . | . . . . . . Level 5 . | . . . . . . High Security . | . . . . . . Max Security . | . . . . . . Peak Influence 334 | 5 50 . 334 182 115 Initial 125 | . 3 . . 125 67 Average 87 | . 3 . 189 89 23 Influence Increases 1682 | 5 57 . 906 350 364 Destroy 0b10 Robot/C 1060 | . 40 . 560 240 220 Destroy 0b10 Robot/NC 105 | 5 5 . 65 15 15 Destroy Leader 270 | . 12 . 122 74 62 Successful Hack 16 | . . . 12 4 . Disable Machine 60 | . . . 60 . . Destroy Structure 66 | . . . 42 2 22 Partial Spotted 60 | . . . . 15 45 Lose Combat Pursuer 45 | . . . 45 . . Influence Decreases 1660 | . 20 42 609 498 491 Entered New Map 277 | . 2 21 . 172 82 Time Decay 1059 | . 18 20 442 326 253 Lost Part 324 | . . 1 167 . 156 Squads Dispatched 10 | . 1 . 4 2 3 Investigation 2 | . 1 . . . 1 Extermination 2 | . . . . . 2 Reinforcement 6 | . . . 4 2 . Assault . | . . . . . . Garrison . | . . . . . . Intercept . | . . . . . . Searches Triggered . | . . . . . . Construction Impeded 1 | . . . 1 . . Haulers Reinforced . | . . . . . . Active Scanning Responses . | . . . . . . Cargo Convoy Interrupts . | . . . . . . Stealth | -11 -10 -10 -8 -8 -7 --------- Run | Yrd Mat Sub Mat Sto Fac Distress Signals 14 | . . . 7 3 4 Communications Jammed . | . . . . . . Distress Signals . | . . . . . . Times Spotted 92 | . 2 6 41 17 26 Peak Tracking Total 7 | . 2 2 5 6 7 Tactical Retreats 9 | . . . 3 . 6 Traps | -11 -10 -10 -8 -8 -7 ------- Run | Yrd Mat Sub Mat Sto Fac Traps Triggered 7 | . 1 . . 3 3 Indirectly . | . . . . . . Trap Hack Attempts 6 | . . . 6 . . Triggered . | . . . . . . Disarmed . | . . . . . . Reprogrammed . | . . . . . . Reused . | . . . . . . Traps Extracted . | . . . . . . Installed . | . . . . . . Triggered . | . . . . . . Machines | -11 -10 -10 -8 -8 -7 ---------- Run | Yrd Mat Sub Mat Sto Fac Machines Disabled 4 | . . . 4 . . Max in Single Turn 2 | . . . 2 . . Machines Repaired . | . . . . . . Machines Dismantled . | . . . . . . Machines Sabotaged . | . . . . . . Overloaded Fab Kills . | . . . . . . Hacking | -11 -10 -10 -8 -8 -7 --------- Run | Yrd Mat Sub Mat Sto Fac Machines Accessed 13 | . 2 . 5 4 2 Terminals 11 | . 2 . 5 3 1 Fabricators . | . . . . . . Repair Stations 1 | . . . . 1 . Recycling Units . | . . . . . . Scanalyzers 1 | . . . . . 1 Garrison Access . | . . . . . . Total Hacks 29 | . 4 . 13 7 5 Successful 19 | . 1 . 11 4 3 Failed 10 | . 3 . 2 3 2 Catastrophic . | . . . . . . Database Lockouts . | . . . . . . Manual 1 | . . . 1 . . Terminals 23 | . 4 . 13 4 2 Fabricators . | . . . . . . Repair Stations 3 | . . . . 3 . Recycling Units . | . . . . . . Scanalyzers 3 | . . . . . 3 Garrison Access . | . . . . . . Terminal Hacks 16 | . 1 . 11 3 1 Record 5 | . 1 . 4 . . Prototype ID Bank 2 | . . . 2 . . Open Door 3 | . . . . 3 . Locate Traps 1 | . . . 1 . . Recall Investigation 1 | . . . . . 1 Hauler Manifests 2 | . . . 2 . . Zone Layout 2 | . . . 2 . . Fabricator Hacks . | . . . . . . Repair Station Hacks 1 | . . . . 1 . Scan Component 1 | . . . . 1 . Recycling Unit Hacks . | . . . . . . Scanalyzer 2 | . . . . . 2 Insert Component 1 | . . . . . 1 Analyze 1 | . . . . . 1 Garrison Access Hacks . | . . . . . . Unauthorized Hacks . | . . . . . . Terminals . | . . . . . . Fabricators . | . . . . . . Repair Stations . | . . . . . . Recycling Units . | . . . . . . Scanalyzers . | . . . . . . Garrison Access . | . . . . . . Data Cores Recovered . | . . . . . . Used . | . . . . . . Hacking Detections 10 | . 2 . 3 3 2 Full Trace Events 1 | . . . . . 1 Feedback Events . | . . . . . . Feedback Blocked . | . . . . . . Robot Schematics Acquired . | . . . . . . Robots Built . | . . . . . . Authchips . | . . . . . . Time . | . . . . . . Total Robot Build Rating . | . . . . . . Part Schematics Acquired 1 | . . . . . 1 Parts Built . | . . . . . . Authchips . | . . . . . . Time . | . . . . . . Total Part Build Rating . | . . . . . . Parts Repaired . | . . . . . . Time . | . . . . . . Parts Recycled . | . . . . . . Recycled Matter . | . . . . . . Retrieved Matter . | . . . . . . Retrieved Components . | . . . . . . Parts Scanalyzed 1 | . . . . . 1 Part Schematics Acquired 1 | . . . . . 1 Parts Damaged . | . . . . . . Bothacking | -11 -10 -10 -8 -8 -7 ------------ Run | Yrd Mat Sub Mat Sto Fac Used RIF Installer . | . . . . . . Robots Hacked 1 | . . . 1 . . Non-combat . | . . . . . . Combat 1 | . . . 1 . . Robot Hacks Applied 1 | . . . 1 . . parse_system 1 | . . . 1 . . Relay Couplers Released . | . . . . . . Fabnet Peak Effective % . | . . . . . . Robots Rewired . | . . . . . . Allies Hacked . | . . . . . . Hacks Repelled . | . . . . . . Allies | -11 -10 -10 -8 -8 -7 -------- Run | Yrd Mat Sub Mat Sto Fac Total Allies . | . . . . . . Largest Group . | . . . . . . Highest-Rated Group . | . . . . . . Highest-Rated Ally . | . . . . . . Total Orders . | . . . . . . Ally Attacks . | . . . . . . Total Damage . | . . . . . . Kills . | . . . . . . Allies Corrupted . | . . . . . . Allies Melted . | . . . . . . Intel | -11 -10 -10 -8 -8 -7 ------- Run | Yrd Mat Sub Mat Sto Fac Active Infowar (turns) 3792 | 8 494 747 1016 286 1241 Sensors 1609 | . . 195 120 286 1008 Terrain 1178 | . . 259 919 . . Traps 28 | . . . . . 28 Seismic 1094 | 8 494 293 299 . . ECM 881 | . . . . . 881 Robot Analysis Total . | . . . . . . Derelict Logs Recovered 1 | . . 1 . . . Drone Launches . | . . . . . . Drone Recoveries . | . . . . . . Exploration | -11 -10 -10 -8 -8 -7 ------------- Run | Yrd Mat Sub Mat Sto Fac Turns Passed 4733 | 73 494 865 1257 734 1310 Spaces Moved 2349 | 41 275 423 556 415 639 Core 105 | 3 . . 12 85 5 Treads . | . . . . . . Legs 1788 | 38 212 423 365 177 573 Wheels 199 | . . . 179 . 20 Hover 257 | . 63 . . 153 41 Flight . | . . . . . . Fastest Speed 42 | 50 56 190 110 42 43 Average Speed 149 | 114 158 190 141 118 146 Slowest Speed 800 | 120 190 260 500 200 800 Overloaded Moves . | . . . . . . Propulsion Burnouts . | . . . . . . Robots Hopped . | . . . . . . Potential Cave-ins . | . . . . . . Cave-ins Triggered . | . . . . . . Exploration Rate (%) 33 | 3 53 28 53 48 17 Regions Visited 5 Branch Regions 2 Pre-discovered Areas 1 | . . . . 1 . Known Exits Taken . | . . . . . . Unknown Exits Taken 5 | 1 1 1 1 1 . Scrap Searched . | . . . . . . Spaces Dug 41 | . . . 18 1 22 Terrain Destroyed 85 | . . 26 36 1 22 Melee 41 | . . . 18 1 22 Projectile 3 | . . . 3 . . AOE 41 | . . 26 15 . . Terrain Rammed . | . . . . . . Walls Destroyed . | . . . . . . Machines Disabled . | . . . . . . Actions | -11 -10 -10 -8 -8 -7 --------- Run | Yrd Mat Sub Mat Sto Fac Total 3122 | 58 320 457 799 605 883 Wait 218 | . 6 . 26 102 84 Move 2344 | 40 274 422 555 414 639 Hop . | . . . . . . Pick Up 77 | 8 11 6 25 13 14 Fast Attach 30 | 7 2 1 5 11 4 Attach 41 | . . 5 15 6 15 Detach 12 | . 2 . 1 3 6 Swap 52 | . 5 3 15 12 17 Drop 43 | . 7 6 10 12 8 Fire 214 | 3 13 14 113 30 41 Melee 79 | . . . 27 2 50 Ram . | . . . . . . Kick . | . . . . . . Crush . | . . . . . . Escape Stasis 5 | . . . . . 5 Rewire . | . . . . . . Trap 6 | . . . 6 . . Miscellaneous 1 | . . . 1 . . Route ------- -11/Scrapyard -10/Materials (discovered 2 exits: [*Min] / [*Sub]) -10/Subcaves -8/Materials -8/Storage -7/Factory History --------- Turn | Location | Event 8 | -11/Scrapyard | Discovered new exit (range 15) 74 | -11/Scrapyard | Entered Materials 75 | -10/Materials | Met a group of wandering Federalists 165 | -10/Materials | Lost 3 allies 250 | -10/Materials | Discovered new exit (range 11) 308 | -10/Materials | Build established: Mutant 496 | -10/Materials | Discovered new exit (range 11) 568 | -10/Materials | Entered Subcaves 569 | -10/Subcaves | Continued accompanying wandering Federalists (3) 569 | -10/Subcaves | Approached by a straggling Scientist 622 | -10/Subcaves | Lost 3 allies 717 | -10/Subcaves | Learned Materials trap positions 717 | -10/Subcaves | Discovered new exit (range 13) 971 | -10/Subcaves | Core integrity fell below 50% 978 | -10/Subcaves | Lost 5 parts (1p2n1u1w) 1074 | -10/Subcaves | Shifting Twisted Machinery released Mak. Thermal Plating 1074 | -10/Subcaves | Shifting Twisted Machinery released Sub. Beam Cannon 1433 | -10/Subcaves | Entered Materials 1433 | -8/Materials | Evolved 4 slots: Propulsion x2, Utility x1, Weapon x1 1434 | -8/Materials | Loaded intel: 16 trap records 1584 | -8/Materials | Lost 3 parts (2n1u) 1920 | -8/Materials | Lost 3 parts (1u2w) 2395 | -8/Materials | Lost 3 parts (1p1n1u) 2571 | -8/Materials | Discovered new exit (range 16) 2619 | -8/Materials | Core integrity fell below 50% 2648 | -8/Materials | Lost 4 parts (3n1u) 2690 | -8/Materials | Entered Storage 2784 | -8/Storage | Met 01-MTF 3385 | -8/Storage | Learned location of Armory (-3) 3419 | -8/Storage | Discovered new exit (range 5) 3424 | -8/Storage | Entered Factory 3424 | -7/Factory | Evolved 2 slots: Utility x2 4488 | -7/Factory | Lost 5 parts (3n1u1w) 4673 | -7/Factory | Core integrity fell below 50% 4704 | -7/Factory | Core integrity fell below 20% 4729 | -7/Factory | Lost 13 parts (2p5n3u3w) 4734 | -7/Factory | Destroyed by G-47 Trooper with Particle Gun Last Messages --------------- 04683_ Critical hit (Burn: +37). 04684_ Imp. EM Pulse Cannon destroyed. 04687_ Destroyed Lgt. Nuclear Core. 04687_ Destroyed Particle Gun. 04687_ G-47 Trooper system corrupted by crushing effect. 04688_ G-47 Trooper system terminally corrupted. 04688_ Aluminum Leg fried. 04689_ Acquired 14 matter. 04692_ Critical hit (Burn: +37). 04695_ System corrupted: Energy discharge (-33). 04698_ Lgt. Nuclear Core destroyed. 04701_ K-01 Serf collects debris. 04705_ Acquired 103 matter. 04708_ K-01 Serf collects debris. 04710_ Critical hit (Burn: +37). 04711_ K-01 Serf collects debris. 04713_ System corrupted: Energy discharge (-31). 04715_ K-01 Serf collects debris. 04730_ G-47 Trooper destroyed. Map ----- +----------------------------------------------------+ | | | | | | | | | | | | | | | | | | | | | | | | | | | | | ???????????????????##################???????????## | | ???????????????????# #???????????# | | ???????????????????# #???????????# | | ???????????????????# #???????????# | | ???????????????????# #??????????## | | ???????????????????# #??????????## | | ???????????????????# #???????????# | | ???????????????????# = #??????????## | | ???????????????????# ! #??????????## | | ???????????????????# ]%= #??????????## | | ??????????????####+#######g##########????????##### | | ?????????? @!^ #?????????# | | ?????????? #?????????# | | ?????????? #?????????# | | ??????????? #?????????# | | ??????????? #?????????# | | ????????????########### #?????????# | | ??????????????????????#t ########### | | ??????????????????????# ! ] | | ??????????????????????# ]] * | | ??????????????????????# """ """ """ ] "" | | ??????????????????????#!!/ """ """ """ "" | | ??????????????????????#!!/ """ """ """ "" | | ??????????????????????#!! | | ??????????????????????# """ """ """ """ """ "" | | ?????????????????????? """ """ """ """ """ "" | | ?????????????????????? ??" """ """ """ """ "" | | ???????????????????????? ?? ? | | ?????????????????????????? ???? ??" """ """ """ "" | | ??????????????????????????????????" """ """ """ "" | | ??????????????????????????????????? ??" ??" "?? "? | | ??????????????????????????????????? ?? ?? ?? ?? | | ??????????????????????????????????? ??? ??? ??? ?? | | ??????????????????????????????????? ??? ??? ??? ?? | | ?????????????????????????????????????????????????? | | ?????????????????????????????????????????????????? | +----------------------------------------------------+ Best States ------------- Heat Dissipation 60 Energy Generation 16 Energy Capacity 290 Matter Stores 300 Matter Capacity 350 Sight Range 16 Robot Scan Range 15 Terrain Scan Range 16 Terrain Scan Density 110 ECM Strength 1 Additional Mass Support 9 Armor Coverage 375 Resistance: TH 10 Core Shielding 20 Evasion (%) 56 Offensive Hacking 10 Item Schematics ----------------- Imp. Datajack | -7/Factory | Scanalyzed Robot Schematics ------------------ None Fabricated ------------ Nothing Repaired ---------- Nothing Alien Tech Used ----------------- None Achievements -------------- GoHome() Omniscient Cartographer Part-time Excavator Watch This! Challenges ------------ None Game ------ Seed ThermoelectricNetworkCannon Manual? 0 Play Time 01:29:45 Cumulative 7.5 hours Start 2025.06.03 @ 17:20:42 End 2025.06.03 @ 18:52:54 Sessions 1 Manual Loads 0 Difficulty Rogue Special Mode None Game No. 8 Rogue 8 Adventurer 0 Explorer 0 Win Type - Total 0 Types 0/0/0/0/0/0/0/0/0/0 Lore% 9 Gallery% 13 Achievement% 14 Wizard Run 0 Options --------- Layout 1 ASCII 0 Keyboard 0 Movement Mouse Keybinds 0 Fullscreen 1 Font 24/Smallcaps Map View 50x40 Zoom Use 0% Tactical HUD 1 Map Filters NONE Filters NONE Steam 1 RUN: 0a2581fd-86ba-4ea3-bf93-9e0c756ce53a